[Event "DMP-III LIGA Senior PK 2020"]
[Site "Bystre"]
[Date "2020.07.11"]
[Round "7.30"]
[White "Wolak, Julia"]
[Black "Wladyka, Angelika"]
[Result "1-0"]
[ECO "C11"]
[WhiteElo "1516"]
[BlackElo "1601"]
[Annotator "NA RC"]
[PlyCount "75"]
[EventDate "2020.07.05"]
[EventType "team-tourn"]
[EventCountry "POL"]
[SourceTitle "playchess.com"]
[Source "ChessBase"]
[SourceQuality "1"]
[TimeControl "5400+30"]

1. e4 {[%emt 0:00:00]} e6 {[%emt 0:00:00]} 2. d4 {[%emt 0:00:00]} d5 {[%emt 0:00:00]} 3. Nc3 {[%emt 0:00:00]} Nf6 {[%emt 0:00:22]} 4. e5 {[%emt 0:00:22]} Nfd7 {[%emt 0:00:49]} 5. f4 {[%emt 0:01:46]} c5 {[%emt 0:03:35]} 6. Nf3 {[%emt 0:00:20]} Nc6 {[%emt 0:02:00]} 7. Be3 {[%emt 0:00:19]} Be7 {[%emt 0:07:53]} 8. Be2 {[%emt 0:02:08]} a6 {[%emt 0:05:48]} 9. O-O {[%emt 0:01:30]} O-O {[%emt 0:04:11]} 10. Kh1 {[%emt 0:01:14]} cxd4 {[%emt 0:12:09]} 11. Nxd4 {[%emt 0:00:26]} Nxd4 {[%emt 0:01:04]} 12. Bxd4 {[%emt 0:00:21]} g6 {[%emt 0:08:59]} 13. Bg4 {[%emt 0:08:22]} Nc5 {[%emt 0:05:58]} 14. Qe1 {[%emt 0:01:54]} b5 {[%emt 0:05:44]} 15. Qg3 {[%emt 0:01:43]} b4 {[%emt 0:02:00]} 16. Ne2 {[%emt 0:05:07]} Ne4 {[%emt 0:00:58]} 17. Qe3 {[%emt 0:00:26]} Bd7 {[%emt 0:11:05]} 18. Ng3 Nxg3+ {[%emt 0:01:08]} 19. Qxg3 {[%emt 0:09:23]} Bb5 {[%emt 0:03:17]} 20. Rfd1 {[%emt 0:02:23]} Bd7 {[%emt 0:02:13]} 21. Qe3 {[%emt 0:04:14]} Qc7 {[%emt 0:02:17]} 22. Rac1 {[%emt 0:02:17]} Qb7 {[%emt 0:01:11]} 23. Bh3 {[%emt 0:02:26]} Rac8 {[%emt 0:01:31]} 24. g4 {[%emt 0:01:05]} Rfd8 {[%emt 0:06:43]} 25. f5 {[%emt 0:01:47]} Qb5 {[%emt 0:04:00]} 26. fxg6 {[%emt 0:02:26]} fxg6 {[%emt 0:01:15]} 27. Bf1 {[%emt 0:01:38]} Qc6 {[%emt 0:01:01]} 28. Bd3 {[%emt 0:00:17]} Be8 {[%emt 0:01:52]} 29. Rf1 {[%emt 0:02:42]} Bc5 {[%emt 0:02:20]} 30. h4 {[%emt 0:01:42]} Bxd4 {[%emt 0:01:00]} 31. Qxd4 {[%emt 0:01:48]} Rc7 {[%emt 0:01:43]} 32. Kh2 {[%emt 0:05:02]} Rf7 {[%emt 0:00:59]} 33. h5 {[%emt 0:01:04]} Rg7 {[%emt 0:00:50]} 34. Qxb4 {[%emt 0:00:29]} Bd7 {[%emt 0:00:25]} 35. h6 {[%emt 0:01:14]} Rf7 {[%emt 0:00:06]} 36. Rxf7 {[%emt 0:00:13]} Kxf7 {[%emt 0:00:05]} 37. Rf1+ {[%emt 0:00:06]} Kg8 {[%emt 0:00:06]} 38. Qe7 {[%emt 0:00:14]} 1-0

[Event "DMP-III LIGA Senior PK 2020"]
[Site "Bystre"]
[Date "2020.07.12"]
[Round "8.2"]
[White "Mazurkiewicz, Andrzej"]
[Black "Socha, Kamil"]
[Result "0-1"]
[ECO "E20"]
[WhiteElo "1608"]
[BlackElo "1817"]
[Annotator "NA RC"]
[PlyCount "86"]
[EventDate "2020.07.05"]
[EventType "team-tourn"]
[EventCountry "POL"]
[SourceTitle "playchess.com"]
[Source "ChessBase"]
[SourceQuality "1"]
[TimeControl "5400+30"]

1. d4 Nf6 {[%emt 0:00:15]} 2. c4 {[%emt 0:08:32]} e6 {[%emt 0:01:07]} 3. Nc3 {[%emt 0:00:23]} Bb4 {[%emt 0:00:25]} 4. Bd2 {[%emt 0:01:57]} O-O {[%emt 0:00:18]} 5. a3 {[%emt 0:01:36]} Bxc3 {[%emt 0:00:04]} 6. Bxc3 {[%emt 0:00:19]} Ne4 {[%emt 0:00:41]} 7. Bb4 {[%emt 0:01:27]} d6 {[%emt 0:00:43]} 8. a4 {[%emt 0:04:32]} Nc6 {[%emt 0:08:13]} 9. Ba3 {[%emt 0:00:07]} a5 {[%emt 0:02:40]} 10. g3 {[%emt 0:01:14]} f5 {[%emt 0:02:03]} 11. f3 {[%emt 0:03:04]} Nf6 {[%emt 0:05:47]} 12. Qd2 {[%emt 0:03:26]} e5 {[%emt 0:03:29]} 13. e3 {[%emt 0:13:19]} exd4 {[%emt 0:02:05]} 14. exd4 {[%emt 0:03:08]} Bd7 {[%emt 0:02:38]} 15. Ne2 {[%emt 0:04:05]} Re8 {[%emt 0:01:30]} 16. O-O-O {[%emt 0:00:53]} Nb4 {[%emt 0:03:14]} 17. Nc3 {[%emt 0:00:43]} c6 {[%emt 0:03:27]} 18. Bg2 {[%emt 0:05:18]} d5 {[%emt 0:02:53]} 19. c5 {[%emt 0:03:30]} b6 {[%emt 0:01:20]} 20. Rhe1 {[%emt 0:00:44]} bxc5 {[%emt 0:00:35]} 21. Rxe8+ {[%emt 0:01:10]} Bxe8 {[%emt 0:00:53]} 22. dxc5 {[%emt 0:01:52]} Rb8 {[%emt 0:03:51]} 23. Qf4 {[%emt 0:05:19]} Rb7 {[%emt 0:08:40]} 24. Qxf5 {[%emt 0:01:46]} Re7 {[%emt 0:01:03]} 25. Kd2 {[%emt 0:10:02]} Bg6 {[%emt 0:06:42]} 26. Qf4 {[%emt 0:02:02]} Nd3 {[%emt 0:15:02]} 27. Qd4 {[%emt 0:00:51]} Qe8 {[%emt 0:00:39]} 28. Bf1 {[%emt 0:06:27]} Ne1 {[%emt 0:04:31]} 29. Rxe1 {[%emt 0:06:16]} Rxe1 {[%emt 0:00:13]} 30. Be2 {[%emt 0:00:06]} Ra1 {[%emt 0:02:48]} 31. Nd1 {[%emt 0:01:09]} Qb8 {[%emt 0:03:05]} 32. Qc3 {[%emt 0:01:54]} Qa7 {[%emt 0:02:03]} 33. h4 {[%emt 0:00:11]} Qc7 {[%emt 0:01:49]} 34. Qe3 {[%emt 0:03:00]} Qxg3 {[%emt 0:01:59]} 35. Qe6+ {[%emt 0:00:10]} Bf7 {[%emt 0:00:28]} 36. Qxc6 {[%emt 0:01:03]} Qf4+ {[%emt 0:00:20]} 37. Ke1 {[%emt 0:00:56]} Qxh4+ {[%emt 0:00:11]} 38. Kd2 {[%emt 0:00:33]} Qd4+ {[%emt 0:00:12]} 39. Ke1 {[%emt 0:00:26]} Rc1 {[%emt 0:01:39]} 40. Qc8+ {[%emt 0:01:40]} Ne8 {[%emt 0:00:18]} 41. c6 {[%emt 0:01:13]} Rc2 {[%emt 0:00:27]} 42. Qg4 {[%emt 0:01:51]} Qd2+ {[%emt 0:00:26]} 43. Kf1 {[%emt 0:01:42]} Qxe2+ {[%emt 0:00:06]} 0-1

[Event "DMP-III LIGA Senior PK 2020"]
[Site "Bystre"]
[Date "2020.07.12"]
[Round "8.3"]
[White "Stefanski, Adam"]
[Black "Chowaniec, Artur"]
[Result "1-0"]
[ECO "A11"]
[WhiteElo "1387"]
[BlackElo "1530"]
[Annotator "NA RC"]
[PlyCount "89"]
[EventDate "2020.07.05"]
[EventType "team-tourn"]
[EventCountry "POL"]
[SourceTitle "playchess.com"]
[Source "ChessBase"]
[SourceQuality "1"]
[TimeControl "5400+30"]

1. c4 {[%emt 0:01:15]} c6 {[%emt 0:03:53]} 2. Nc3 {[%emt 0:00:05]} d5 {[%emt 0:00:50]} 3. cxd5 {[%emt 0:00:06]} cxd5 {[%emt 0:01:06]} 4. d4 {[%emt 0:00:24]} Nf6 {[%emt 0:00:23]} 5. Bf4 {[%emt 0:01:11]} a6 {[%emt 0:00:08]} 6. Nf3 {[%emt 0:00:11]} Nc6 {[%emt 0:00:54]} 7. e3 {[%emt 0:00:08]} Qb6 {[%emt 0:00:54]} 8. Rb1 {[%emt 0:06:16]} Bf5 {[%emt 0:00:27]} 9. Bd3 {[%emt 0:00:19]} Bxd3 {[%emt 0:00:42]} 10. Qxd3 {[%emt 0:00:09]} e6 {[%emt 0:00:14]} 11. a3 {[%emt 0:00:56]} Be7 {[%emt 0:04:27]} 12. O-O {[%emt 0:01:46]} O-O {[%emt 0:00:57]} 13. Rfc1 {[%emt 0:04:18]} Nh5 {[%emt 0:00:47]} 14. Bg3 {[%emt 0:02:05]} Nxg3 {[%emt 0:02:37]} 15. hxg3 {[%emt 0:00:51]} Rac8 {[%emt 0:00:33]} 16. Na4 {[%emt 0:05:40]} Qa5 {[%emt 0:06:06]} 17. Nc5 {[%emt 0:02:50]} Bxc5 {[%emt 0:02:32]} 18. Rxc5 {[%emt 0:04:05]} Qd8 {[%emt 0:01:02]} 19. Rbc1 {[%emt 0:02:04]} Ne7 {[%emt 0:05:40]} 20. Ng5 {[%emt 0:05:08]} g6 {[%emt 0:00:46]} 21. f4 {[%emt 0:10:35]} Qd7 {[%emt 0:02:31]} 22. Kf2 {[%emt 0:13:21]} Rxc5 {[%emt 0:00:30]} 23. dxc5 {[%emt 0:03:02]} f6 {[%emt 0:06:30]} 24. Nf3 {[%emt 0:01:21]} Nc6 {[%emt 0:02:02]} 25. Nd4 {[%emt 0:17:44]} Rc8 {[%emt 0:07:21]} 26. b4 {[%emt 0:01:53]} Nxd4 {[%emt 0:05:12]} 27. Qxd4 {[%emt 0:00:52]} Kf7 {[%emt 0:00:51]} 28. Rh1 {[%emt 0:02:31]} Rh8 {[%emt 0:01:01]} 29. g4 {[%emt 0:00:25]} Qa4 {[%emt 0:02:14]} 30. Qc3 {[%emt 0:00:52]} Qd7 {[%emt 0:03:43]} 31. g5 {[%emt 0:03:57]} Qe7 {[%emt 0:01:14]} 32. c6 {[%emt 0:03:59]} bxc6 {[%emt 0:00:57]} 33. gxf6 {[%emt 0:00:16]} Qxf6 {[%emt 0:02:09]} 34. Qxc6 {[%emt 0:00:51]} Qb2+ {[%emt 0:00:21]} 35. Kf3 {[%emt 0:00:23]} Qxa3 {[%emt 0:01:47]} 36. Qc7+ {[%emt 0:02:48]} Kf8 {[%emt 0:00:45]} 37. Qd8+ {[%emt 0:00:14]} Kg7 {[%emt 0:00:13]} 38. Qe7+ {[%emt 0:00:28]} Kg8 {[%emt 0:00:15]} 39. Qxe6+ {[%emt 0:00:37]} Kg7 {[%emt 0:00:10]} 40. Qe5+ {[%emt 0:01:14]} Kg8 {[%emt 0:00:12]} 41. Qxd5+ {[%emt 0:00:08]} Kg7 {[%emt 0:00:10]} 42. Qb7+ {[%emt 0:00:46]} Kg8 {[%emt 0:01:09]} 43. Rd1 {[%emt 0:00:49]} Qa5 {[%emt 0:01:13]} 44. bxa5 {[%emt 0:00:08]} h5 {[%emt 0:00:03]} 45. Rd8# {[%emt 0:00:33]} 1-0

[Event "DMP-III LIGA Senior PK 2020"]
[Site "Bystre"]
[Date "2020.07.12"]
[Round "8.4"]
[White "Wrobel, Dariusz"]
[Black "Korys, Dawid"]
[Result "1-0"]
[ECO "B30"]
[WhiteElo "1427"]
[BlackElo "1343"]
[Annotator "NA RC"]
[PlyCount "59"]
[EventDate "2020.07.05"]
[EventType "team-tourn"]
[EventCountry "POL"]
[SourceTitle "playchess.com"]
[Source "ChessBase"]
[SourceQuality "1"]
[TimeControl "5400+30"]

1. e4 {[%emt 0:05:33]} c5 {[%emt 0:00:00]} 2. Nf3 {[%emt 0:00:10]} Nc6 {[%emt 0:00:09]} 3. Be2 {[%emt 0:00:20]} e6 {[%emt 0:00:15]} 4. d3 {[%emt 0:00:35]} d5 {[%emt 0:00:28]} 5. exd5 {[%emt 0:00:13]} exd5 {[%emt 0:00:09]} 6. O-O {[%emt 0:00:05]} Nf6 {[%emt 0:00:03]} 7. Bg5 {[%emt 0:00:18]} Be7 {[%emt 0:00:11]} 8. Nbd2 {[%emt 0:00:17]} Be6 {[%emt 0:00:44]} 9. c3 {[%emt 0:05:23]} O-O {[%emt 0:00:20]} 10. Nb3 {[%emt 0:00:09]} b6 {[%emt 0:00:51]} 11. d4 {[%emt 0:00:15]} c4 {[%emt 0:01:40]} 12. Nbd2 {[%emt 0:00:14]} Qc7 {[%emt 0:00:42]} 13. Re1 {[%emt 0:00:20]} Rfe8 {[%emt 0:00:57]} 14. Nf1 {[%emt 0:01:11]} Ne4 {[%emt 0:00:29]} 15. Bxe7 {[%emt 0:00:17]} Rxe7 {[%emt 0:00:10]} 16. N1d2 {[%emt 0:00:45]} Nxd2 {[%emt 0:00:12]} 17. Nxd2 {[%emt 0:00:22]} Rae8 {[%emt 0:00:06]} 18. Bf3 {[%emt 0:00:50]} Qd6 {[%emt 0:01:40]} 19. Nf1 {[%emt 0:00:28]} Bf5 {[%emt 0:00:16]} 20. Rxe7 {[%emt 0:00:27]} Rxe7 {[%emt 0:00:11]} 21. Qd2 {[%emt 0:00:11]} Be4 {[%emt 0:01:02]} 22. Be2 {[%emt 0:00:46]} Nd8 {[%emt 0:01:51]} 23. Re1 {[%emt 0:00:22]} Bf5 {[%emt 0:01:01]} 24. Ng3 {[%emt 0:00:20]} Bg6 {[%emt 0:00:20]} 25. Bg4 {[%emt 0:01:36]} h6 {[%emt 0:02:58]} 26. Bf5 {[%emt 0:00:11]} Bxf5 {[%emt 0:04:00]} 27. Nxf5 {[%emt 0:00:13]} Rxe1+ {[%emt 0:00:04]} 28. Qxe1 {[%emt 0:00:31]} Qe6 {[%emt 0:00:01]} 29. Qe5 {[%emt 0:03:06]} Nc6 {[%emt 0:01:04]} 30. Qxg7# {[%emt 0:01:16]} 1-0

[Event "DMP-III LIGA Senior PK 2020"]
[Site "Bystre"]
[Date "2020.07.12"]
[Round "8.5"]
[White "Medrygal, Rafal"]
[Black "Kielb, Miroslaw"]
[Result "1/2-1/2"]
[ECO "C50"]
[WhiteElo "1258"]
[BlackElo "1394"]
[Annotator "NA RC"]
[PlyCount "144"]
[EventDate "2020.07.05"]
[EventType "team-tourn"]
[EventCountry "POL"]
[SourceTitle "playchess.com"]
[Source "ChessBase"]
[SourceQuality "1"]
[TimeControl "5400+30"]

1. e4 {[%emt 0:00:00]} e5 {[%emt 0:04:55]} 2. Nf3 {[%emt 0:00:00]} Nc6 {[%emt 0:00:06]} 3. Bc4 {[%emt 0:00:09]} Bc5 {[%emt 0:00:14]} 4. Nc3 {[%emt 0:01:07]} Nf6 {[%emt 0:01:09]} 5. d3 {[%emt 0:01:49]} d6 {[%emt 0:00:40]} 6. Bg5 {[%emt 0:01:42]} Be6 {[%emt 0:01:50]} 7. Bb3 {[%emt 0:01:51]} O-O {[%emt 0:03:47]} 8. Nd5 {[%emt 0:01:40]} Bxd5 {[%emt 0:00:45]} 9. Bxd5 {[%emt 0:00:15]} h6 {[%emt 0:01:16]} 10. Bh4 {[%emt 0:01:39]} g5 {[%emt 0:04:00]} 11. Bg3 {[%emt 0:01:21]} Nxd5 {[%emt 0:00:58]} 12. exd5 {[%emt 0:00:11]} Ne7 {[%emt 0:01:08]} 13. c4 {[%emt 0:01:08]} Bb4+ {[%emt 0:00:52]} 14. Nd2 {[%emt 0:00:35]} Ng6 {[%emt 0:06:44]} 15. a3 {[%emt 0:04:02]} Bxd2+ {[%emt 0:00:46]} 16. Qxd2 {[%emt 0:00:07]} f5 {[%emt 0:00:42]} 17. f3 {[%emt 0:02:17]} f4 {[%emt 0:01:39]} 18. Bf2 {[%emt 0:00:23]} c5 {[%emt 0:02:02]} 19. Qc2 {[%emt 0:01:47]} Kg7 {[%emt 0:02:14]} 20. b4 {[%emt 0:02:12]} b6 {[%emt 0:01:29]} 21. O-O {[%emt 0:05:56]} h5 {[%emt 0:02:43]} 22. bxc5 {[%emt 0:00:33]} bxc5 {[%emt 0:00:16]} 23. Rfb1 {[%emt 0:00:20]} Qc7 {[%emt 0:01:50]} 24. Rb2 {[%emt 0:03:22]} Rfb8 {[%emt 0:00:31]} 25. Rab1 {[%emt 0:00:08]} Rb6 {[%emt 0:00:59]} 26. Be1 {[%emt 0:03:01]} Qb7 {[%emt 0:02:06]} 27. Ba5 {[%emt 0:02:54]} Rxb2 {[%emt 0:00:51]} 28. Qxb2 {[%emt 0:00:28]} Qxb2 {[%emt 0:06:53]} 29. Rxb2 {[%emt 0:00:34]} Ne7 {[%emt 0:01:19]} 30. Bc7 {[%emt 0:01:31]} Nf5 {[%emt 0:00:26]} 31. Kf2 {[%emt 0:03:09]} g4 {[%emt 0:02:06]} 32. fxg4 {[%emt 0:01:33]} hxg4 {[%emt 0:00:09]} 33. Rb7 {[%emt 0:00:33]} Kf6 {[%emt 0:01:17]} 34. a4 {[%emt 0:05:16]} Rh8 {[%emt 0:01:47]} 35. Kg1 {[%emt 0:01:51]} g3 {[%emt 0:03:13]} 36. hxg3 {[%emt 0:00:58]} fxg3 {[%emt 0:00:32]} 37. Rb8 {[%emt 0:01:43]} Rxb8 {[%emt 0:01:42]} 38. Bxb8 {[%emt 0:00:07]} a6 {[%emt 0:00:07]} 39. Kf1 {[%emt 0:00:37]} Ke7 {[%emt 0:02:32]} 40. Bc7 {[%emt 0:00:49]} Ne3+ {[%emt 0:02:14]} 41. Kg1 {[%emt 0:01:40]} Nd1 {[%emt 0:00:49]} 42. Kf1 {[%emt 0:00:59]} Nb2 {[%emt 0:01:28]} 43. Ke2 {[%emt 0:00:53]} Nxa4 {[%emt 0:01:39]} 44. Ba5 {[%emt 0:00:28]} Kd7 {[%emt 0:01:59]} 45. Kd2 {[%emt 0:01:25]} Kc8 {[%emt 0:00:30]} 46. Kc2 {[%emt 0:00:13]} Kb7 {[%emt 0:00:14]} 47. Be1 {[%emt 0:00:30]} Nb6 {[%emt 0:01:37]} 48. Bxg3 {[%emt 0:00:25]} a5 {[%emt 0:01:12]} 49. Be1 {[%emt 0:00:40]} Ka6 {[%emt 0:01:55]} 50. g4 {[%emt 0:04:16]} Nd7 {[%emt 0:01:31]} 51. Kb3 {[%emt 0:01:29]} Nf8 {[%emt 0:02:59]} 52. Ka4 {[%emt 0:01:27]} Ng6 {[%emt 0:00:37]} 53. Bxa5 {[%emt 0:01:06]} Nf4 {[%emt 0:01:10]} 54. g5 {[%emt 0:03:20]} Kb7 {[%emt 0:04:11]} 55. Kb3 {[%emt 0:01:34]} Kc8 {[%emt 0:00:47]} 56. Kc2 {[%emt 0:01:27]} Kd7 {[%emt 0:00:46]} 57. Kd2 {[%emt 0:01:11]} Ke7 {[%emt 0:00:39]} 58. Ke3 {[%emt 0:03:03]} Ng6 {[%emt 0:04:44]} 59. Ke4 {[%emt 0:00:52]} Nf4 {[%emt 0:00:12]} 60. Kf5 {[%emt 0:00:40]} Nxd3 {[%emt 0:00:14]} 61. g6 {[%emt 0:01:08]} Nb2 {[%emt 0:00:51]} 62. Bd8+ {[%emt 0:01:31]} Kf8 {[%emt 0:00:53]} 63. Ke6 {[%emt 0:02:52]} Nxc4 {[%emt 0:00:26]} 64. Be7+ {[%emt 0:00:44]} Kg7 {[%emt 0:00:24]} 65. Bxd6 {[%emt 0:00:09]} Kxg6 {[%emt 0:05:08]} 66. Bxe5 {[%emt 0:01:47]} Nxe5 {[%emt 0:00:34]} 67. Kxe5 {[%emt 0:00:06]} c4 {[%emt 0:01:11]} 68. Kd4 {[%emt 0:00:10]} Kf6 {[%emt 0:00:44]} 69. Kxc4 {[%emt 0:00:11]} Ke7 {[%emt 0:00:21]} 70. Kc5 {[%emt 0:00:53]} Kd7 {[%emt 0:00:27]} 71. d6 {[%emt 0:00:58]} Kd8 {[%emt 0:00:18]} 72. Kc6 {[%emt 0:01:22]} Kc8 {[%emt 0:00:07]} 1/2-1/2

[Event "DMP-III LIGA Senior PK 2020"]
[Site "Bystre"]
[Date "2020.07.12"]
[Round "8.6"]
[White "Wolak, Julia"]
[Black "Trybowska, Anna"]
[Result "1/2-1/2"]
[ECO "C15"]
[WhiteElo "1516"]
[BlackElo "1583"]
[Annotator "NA RC"]
[PlyCount "75"]
[EventDate "2020.07.05"]
[EventType "team-tourn"]
[EventCountry "POL"]
[SourceTitle "playchess.com"]
[Source "ChessBase"]
[SourceQuality "1"]
[TimeControl "5400+30"]

1. e4 {[%emt 0:05:18]} e6 {[%emt 0:00:00]} 2. d4 {[%emt 0:00:36]} d5 {[%emt 0:00:00]} 3. Nc3 {[%emt 0:00:46]} Bb4 {[%emt 0:02:37]} 4. Qg4 {[%emt 0:01:16]} Nf6 {[%emt 0:02:29]} 5. Qxg7 {[%emt 0:01:21]} Rg8 {[%emt 0:00:06]} 6. Qh6 {[%emt 0:00:18]} Rg6 {[%emt 0:02:18]} 7. Qe3 {[%emt 0:02:02]} Nxe4 {[%emt 0:01:08]} 8. Nf3 {[%emt 0:01:59]} c5 {[%emt 0:10:48]} 9. Bd2 {[%emt 0:03:54]} Nxd2 {[%emt 0:06:27]} 10. Qxd2 {[%emt 0:02:01]} Rg4 {[%emt 0:04:43]} 11. a3 {[%emt 0:05:31]} Qa5 {[%emt 0:05:33]} 12. Rd1 {[%emt 0:06:00]} Bxc3 {[%emt 0:01:11]} 13. Qxc3 {[%emt 0:00:14]} Qxc3+ {[%emt 0:00:32]} 14. bxc3 {[%emt 0:00:03]} c4 {[%emt 0:00:45]} 15. Ne5 {[%emt 0:01:22]} Rg8 {[%emt 0:00:38]} 16. Be2 {[%emt 0:05:49]} f6 {[%emt 0:04:53]} 17. Ng4 {[%emt 0:00:34]} Ke7 {[%emt 0:00:27]} 18. f4 {[%emt 0:00:33]} Na6 {[%emt 0:02:08]} 19. Bf3 {[%emt 0:01:14]} Nc7 {[%emt 0:00:35]} 20. Kf2 {[%emt 0:01:12]} Nb5 {[%emt 0:00:52]} 21. f5 {[%emt 0:01:41]} h5 {[%emt 0:02:53]} 22. Ne3 {[%emt 0:01:09]} Nxc3 {[%emt 0:01:07]} 23. Rd2 {[%emt 0:01:31]} Kd6 {[%emt 0:02:13]} 24. fxe6 {[%emt 0:00:52]} Bxe6 {[%emt 0:00:09]} 25. Re1 {[%emt 0:01:59]} f5 {[%emt 0:03:13]} 26. Kf1 {[%emt 0:03:28]} Ne4 {[%emt 0:00:45]} 27. Rde2 {[%emt 0:02:15]} h4 {[%emt 0:01:40]} 28. Bxe4 {[%emt 0:00:54]} fxe4 {[%emt 0:02:36]} 29. c3 {[%emt 0:00:50]} Raf8+ {[%emt 0:00:20]} 30. Rf2 {[%emt 0:00:45]} h3 {[%emt 0:01:22]} 31. g3 {[%emt 0:00:37]} Rxf2+ {[%emt 0:00:22]} 32. Kxf2 {[%emt 0:00:07]} Rf8+ {[%emt 0:00:05]} 33. Ke2 {[%emt 0:00:29]} Ke7 {[%emt 0:06:17]} 34. Rb1 {[%emt 0:01:22]} b6 {[%emt 0:00:47]} 35. Rb5 {[%emt 0:00:39]} Rd8 {[%emt 0:01:38]} 36. Rb1 {[%emt 0:00:35]} Kf6 {[%emt 0:01:25]} 37. Rf1+ {[%emt 0:00:43]} Kg5 {[%emt 0:00:42]} 38. Rf4 {[%emt 0:00:33]} 1/2-1/2

[Event "DMP-III LIGA Senior PK 2020"]
[Site "Bystre"]
[Date "2020.07.12"]
[Round "8.8"]
[White "Lach, Ireneusz"]
[Black "Marciniak, Leonard"]
[Result "1/2-1/2"]
[ECO "B92"]
[WhiteElo "1897"]
[BlackElo "1672"]
[Annotator "NA RC"]
[PlyCount "49"]
[EventDate "2020.07.05"]
[EventType "team-tourn"]
[EventCountry "POL"]
[SourceTitle "playchess.com"]
[Source "ChessBase"]
[SourceQuality "1"]
[TimeControl "5400+30"]

1. e4 {[%emt 0:00:00]} c5 {[%emt 0:00:00]} 2. Nf3 {[%emt 0:00:00]} d6 {[%emt 0:00:00]} 3. d4 {[%emt 0:00:00]} Nf6 {[%emt 0:00:00]} 4. Nc3 {[%emt 0:00:00]} cxd4 {[%emt 0:00:00]} 5. Nxd4 {[%emt 0:00:00]} a6 {[%emt 0:00:07]} 6. Be2 {[%emt 0:02:09]} e5 {[%emt 0:00:32]} 7. Nb3 {[%emt 0:06:55]} Be7 {[%emt 0:00:40]} 8. O-O {[%emt 0:01:46]} Be6 {[%emt 0:02:02]} 9. Kh1 {[%emt 0:01:53]} d5 {[%emt 0:01:07]} 10. exd5 {[%emt 0:00:44]} Nxd5 {[%emt 0:00:06]} 11. Nxd5 {[%emt 0:07:35]} Qxd5 {[%emt 0:01:17]} 12. Be3 {[%emt 0:09:17]} Nc6 {[%emt 0:00:19]} 13. c3 {[%emt 0:02:05]} Qxd1 {[%emt 0:05:52]} 14. Rfxd1 {[%emt 0:00:35]} Rd8 {[%emt 0:00:57]} 15. Nc5 {[%emt 0:04:23]} Bxc5 {[%emt 0:01:32]} 16. Bxc5 {[%emt 0:03:40]} f6 {[%emt 0:02:35]} 17. a3 {[%emt 0:05:11]} Kf7 {[%emt 0:02:41]} 18. Bb6 {[%emt 0:02:55]} Rc8 {[%emt 0:03:04]} 19. h3 {[%emt 0:06:18]} f5 {[%emt 0:01:23]} 20. Rd6 {[%emt 0:05:44]} e4 {[%emt 0:01:23]} 21. f3 {[%emt 0:00:54]} Ne5 {[%emt 0:02:44]} 22. fxe4 {[%emt 0:00:42]} fxe4 {[%emt 0:00:17]} 23. Rad1 {[%emt 0:18:32]} Nc4 {[%emt 0:08:23]} 24. Bxc4 {[%emt 0:06:14]} Rxc4 {[%emt 0:00:06]} 25. Kg1 {[%emt 0:00:17]} 1/2-1/2

[Event "DMP-III LIGA Senior PK 2020"]
[Site "Bystre"]
[Date "2020.07.12"]
[Round "8.9"]
[White "Klok, Kacper"]
[Black "Janzer, Hubert"]
[Result "1/2-1/2"]
[ECO "A57"]
[WhiteElo "1463"]
[BlackElo "1893"]
[Annotator "NA RC"]
[PlyCount "57"]
[EventDate "2020.07.05"]
[EventType "team-tourn"]
[EventCountry "POL"]
[SourceTitle "playchess.com"]
[Source "ChessBase"]
[SourceQuality "1"]
[TimeControl "5400+30"]

1. d4 {[%emt 0:00:01]} Nf6 {[%emt 0:00:00]} 2. c4 {[%emt 0:01:12]} c5 {[%emt 0:00:00]} 3. d5 {[%emt 0:07:00]} b5 {[%emt 0:00:14]} 4. e3 {[%emt 0:00:33]} g6 {[%emt 0:01:34]} 5. Nf3 {[%emt 0:00:08]} Bg7 {[%emt 0:00:15]} 6. Be2 {[%emt 0:06:26]} O-O {[%emt 0:01:30]} 7. O-O {[%emt 0:00:07]} d6 {[%emt 0:00:30]} 8. cxb5 {[%emt 0:21:30]} a6 {[%emt 0:01:36]} 9. Nc3 {[%emt 0:02:02]} axb5 {[%emt 0:00:33]} 10. Bxb5 {[%emt 0:05:06]} Ba6 {[%emt 0:00:05]} 11. Bxa6 {[%emt 0:00:36]} Nxa6 {[%emt 0:01:32]} 12. e4 {[%emt 0:00:35]} Qa5 {[%emt 0:00:50]} 13. Re1 {[%emt 0:09:48]} Nd7 {[%emt 0:01:45]} 14. Bg5 {[%emt 0:06:26]} Rfb8 {[%emt 0:04:50]} 15. Rb1 {[%emt 0:03:48]} Rxb2 {[%emt 0:01:00]} 16. Rxb2 {[%emt 0:00:14]} Bxc3 {[%emt 0:00:05]} 17. Rb7 {[%emt 0:00:06]} Bxe1 {[%emt 0:00:36]} 18. Rxd7 {[%emt 0:00:51]} Bc3 {[%emt 0:00:56]} 19. Bxe7 {[%emt 0:00:05]} Re8 {[%emt 0:04:13]} 20. Qb3 {[%emt 0:08:03]} c4 {[%emt 0:02:06]} 21. Qxc4 {[%emt 0:03:12]} Nc5 {[%emt 0:02:40]} 22. Rd8 {[%emt 0:00:29]} Rxd8 {[%emt 0:01:06]} 23. Bxd8 {[%emt 0:00:08]} Qxd8 {[%emt 0:02:18]} 24. Qxc3 {[%emt 0:00:17]} Nxe4 {[%emt 0:00:06]} 25. Qc4 {[%emt 0:05:45]} f5 {[%emt 0:00:17]} 26. Nd4 {[%emt 0:00:20]} Qb6 {[%emt 0:01:14]} 27. Qc8+ {[%emt 0:02:24]} Kf7 {[%emt 0:02:36]} 28. Qd7+ {[%emt 0:00:13]} Kf6 {[%emt 0:00:50]} 29. Qe6+ {[%emt 0:00:09]} 1/2-1/2